fUSD/lending_fUSD_20240215
["ID","MTS","AMOUNT","RATE_DAILY","PERIOD"]
[314088073,1707967843789,-500.0,0.0003863,7]
[314088074,1707967843798,-500.0,0.0003863,7]
[314088075,1707967843807,-500.0,0.0003863,7]
[314088076,1707967843817,-500.0,0.0003863,7]
[314088077,1707967843827,-500.0,0.0003863,7]
[314088078,1707967843836,-500.0,0.0003863,7]
[314088079,1707967843846,-500.0,0.0003863,7]
[314088080,1707967843856,-867.04,0.0003863,7]
[314088081,1707967843866,-500.0,0.0003863,7]
[314088082,1707967843875,-500.0,0.0003863,7]
[314088083,1707967843885,-500.0,0.0003863,7]
[314088084,1707967843894,-637.2456945,0.0003863,7]
[314088085,1707967843904,-500.0,0.0003863,7]
[314088086,1707967843914,-500.0,0.0003863,7]
[314088087,1707967843926,-224.09413997,0.0003863,7]
[314088088,1707967843936,-500.0,0.0003863,7]
[314088089,1707967843945,-500.0,0.0003863,7]
[314088090,1707967843955,-500.0,0.0003863,7]
[314088091,1707967843966,-500.0,0.0003863,7]
[314088092,1707967843977,-500.0,0.0003863,7]
[314088093,1707967843987,-500.0,0.0003863,7]
[314088094,1707967843997,-155.82835472,0.0003863,7]
[314088095,1707967844007,-500.0,0.0003863,7]
[314088096,1707967844017,-500.0,0.0003863,7]
[314088097,1707967844026,-500.0,0.0003863,7]
[314088098,1707967844036,-500.0,0.0003863,7]
[314088099,1707967844046,-500.0,0.0003863,7]
[314088100,1707967844057,-239.43905646,0.0003863,7]
[314088101,1707967844115,-260.56094354,0.0003863,7]
[314088102,1707967844125,-256.28946934,0.0003863,7]
[314088103,1707967844304,-1042.56882495,0.00037733,2]
[314088104,1707967844314,-500.0,0.00038356,7]
[314088105,1707967844324,-500.0,0.00038356,7]
[314088106,1707967844334,-500.0,0.00038356,7]
[314088107,1707967844344,-500.0,0.00038356,7]
[314088108,1707967844353,-92.12300159,0.0003863,7]
[314088109,1707967844362,-507.58695237,0.0003863,7]
[314088110,1707967844374,-36.06494249,0.0003863,7]
[314088111,1707967844383,-577.54160652,0.0003863,7]
[314088112,1707967844393,-500.0,0.0003863,7]
[314088113,1707967844402,-353.86387531,0.0003863,7]
[314088114,1707967844411,-500.0,0.0003863,7]
[314088115,1707967844420,-160.38856883,0.0003863,7]
[314088116,1707967844429,-270.74804101,0.0003863,7]
[314088122,1707967846314,-302.12549102,0.00038356,7]
[314088123,1707967846371,-197.87450898,0.00038356,7]
[314088124,1707967846381,-500.0,0.00038356,7]
[314088125,1707967846390,-500.0,0.00038356,7]
[314088126,1707967846400,-229.25195899,0.0003863,7]
[314088127,1707967846409,-500.0,0.0003863,7]
[314088128,1707967846419,-500.0,0.0003863,7]
[314088129,1707967846429,-500.0,0.0003863,7]
[314088130,1707967846439,-621.3846389,0.0003863,7]
[314088131,1707967846448,-500.0,0.0003863,7]
[314088132,1707967846458,-500.0,0.0003863,7]
[314088133,1707967846468,-500.0,0.0003863,7]
[314088134,1707967846477,-647.64276861,0.0003863,7]
[314088135,1707967846486,-500.0,0.0003863,7]
[314088136,1707967846497,-500.0,0.0003863,7]
[314088137,1707967846507,-500.0,0.0003863,7]
[314088138,1707967846516,-500.0,0.0003863,7]
[314088139,1707967846526,-149.37691373,0.0003863,7]
[314088140,1707967846543,-350.62308627,0.0003863,7]
[314088141,1707967846552,-438.24538045,0.0003863,7]
[314088142,1707967846562,-500.0,0.0003863,7]
[314088143,1707967846571,-500.0,0.0003863,7]
[314088144,1707967846581,-500.0,0.0003863,7]
[314088145,1707967846591,-527.16355375,0.0003863,7]
[314088146,1707967846601,-500.0,0.0003863,7]
[314088147,1707967846610,-500.0,0.0003863,7]
[314088148,1707967846620,-500.0,0.0003863,7]
[314088149,1707967846630,-500.0,0.0003863,7]
[314088150,1707967846640,-500.0,0.0003863,7]
[314088151,1707967846649,-386.83009874,0.0003863,7]
[314088152,1707967846661,-500.0,0.0003863,7]
[314088153,1707967846671,-429.77141477,0.0003863,7]
[314088155,1707967846680,-500.0,0.0003863,7]
[314088157,1707967846690,-643.08340973,0.0003863,7]
[314088159,1707967846702,-500.0,0.0003863,7]
[314088162,1707967846711,-415.03525047,0.0003863,7]
[314088164,1707967846721,-500.0,0.0003863,7]
[314088166,1707967846730,-500.0,0.0003863,7]
[314088167,1707967846740,-500.0,0.0003863,7]
[314088169,1707967846749,-500.0,0.0003863,7]
[314088172,1707967846759,-500.0,0.0003863,7]
[314088174,1707967846769,-500.0,0.0003863,7]
[314088176,1707967846779,-506.33281032,0.0003863,7]
[314088177,1707967846788,-500.0,0.0003863,7]
[314088178,1707967846798,-329.45449173,0.0003863,7]
[314088179,1707967846808,-1072.32,0.0003863,7]
[314088180,1707967846818,-626.71292108,0.0003863,7]
[314088181,1707967846827,-500.0,0.0003863,7]
[314088182,1707967846837,-500.0,0.0003863,7]
[314088183,1707967846848,-500.0,0.0003863,7]
[314088184,1707967846857,-244.07478227,0.0003863,7]
[314088185,1707967846867,-609.62,0.0003863,7]
[314088186,1707967846876,-500.0,0.0003863,7]
[314088187,1707967846886,-500.0,0.0003863,7]
[314088188,1707967846895,-572.41566664,0.0003863,7]
[314088189,1707967846904,-500.0,0.0003863,7]
[314088190,1707967846914,-500.0,0.0003863,2]
[314088191,1707967846925,-500.0,0.0003863,7]
[314088192,1707967846935,-500.0,0.0003863,7]
[314088193,1707967846944,-500.0,0.0003863,7]
[314088194,1707967846954,-500.0,0.0003863,7]
[314088195,1707967846963,-500.0,0.0003863,7]
[314088196,1707967846973,-500.0,0.0003863,7]
[314088197,1707967846982,-500.0,0.0003863,7]
[314088198,1707967846991,-1000.0,0.0003863,7]
[314088199,1707967847002,-500.0,0.0003863,7]
[314088200,1707967847011,-442.84,0.0003863,7]
[314088201,1707967847021,-500.0,0.0003863,7]
[314088202,1707967847030,-500.0,0.0003863,7]
[314088203,1707967847040,-500.0,0.0003863,7]
[314088204,1707967847051,-500.0,0.0003863,7]
[314088205,1707967847060,-261.39944762,0.0003863,7]
[314088206,1707967847070,-500.0,0.0003863,7]
[314088207,1707967847080,-500.0,0.0003863,7]
[314088208,1707967847090,-500.0,0.0003863,7]
[314088209,1707967847099,-500.0,0.0003863,7]
[314088210,1707967847109,-500.0,0.0003863,7]
[314088211,1707967847118,-500.0,0.0003863,7]
[314088212,1707967847127,-500.0,0.0003863,7]
[314088213,1707967847138,-418.82,0.0003863,7]
[314088214,1707967847149,-373.56967701,0.0003863,7]
[314088215,1707967847159,-500.0,0.0003863,7]
[314088216,1707967847169,-500.0,0.0003863,7]
[314088217,1707967847185,-500.0,0.0003863,7]
[314088218,1707967847196,-609.10154586,0.0003863,7]
[314088219,1707967847206,-500.0,0.0003863,7]
[314088220,1707967847217,-691.75,0.0003863,7]
[314088221,1707967847227,-500.0,0.0003863,7]
[314088222,1707967847238,-257.01845969,0.0003863,7]
[314088223,1707967847248,-285.86970516,0.0003863,7]
[314088224,1707967847257,-500.0,0.0003863,7]
[314088225,1707967847267,-500.0,0.0003863,7]
[314088226,1707967847276,-290.0,0.0003864,2]
[314088227,1707967847287,-1208.7302746,0.00038712,2]
[314088228,1707967847402,-155.0,0.000388,2]
[314088229,1707967847417,-755.94194977,0.00038811,9]
[314088230,1707967847431,-180.0,0.00038812,2]
[314088231,1707967847441,-69832.47607404,0.00038893,3]
[314088232,1707967847459,-14284.63291486,0.00038893,3]
[314088233,1707967847468,-67.93509013,0.00038893,2]
[314088234,1707967847480,-152.07586516,0.00038893,2]
[314088235,1707967847490,-1252.0,0.000389,2]
[314088236,1707967847499,-510.07567485,0.00038903,7]
[314088237,1707967847508,-753.55556707,0.00038903,7]
[314088241,1707968969138,-556.59828451,0.000231,2]
[314088242,1707968969159,-175.0,0.00023105,2]
[314088243,1707968969181,-175.0,0.00024749,2]
[314088244,1707968969202,-2.37117929,0.00026393,2]
[314088245,1707969004872,159.0,0.00022262,2]
[314088253,1707969031438,-159.0,0.00023905,2]
[314088254,1707969031450,-159.0,0.00025549,2]
[314088255,1707969031460,-4414.8341,0.00027167,2]
[314088256,1707969031470,-159.0,0.00027193,2]
[314088257,1707969031480,-186.76,0.00027348,2]
[314088258,1707969031490,-195.78267876,0.00027937,2]
[314088259,1707969031501,-195.7826786,0.00028567,2]
[314088260,1707969031511,-159.0,0.00028837,2]
[314088261,1707969031524,-195.7826786,0.00029196,2]
[314088262,1707969031534,-499.99,0.00029681,2]
[314088263,1707969031547,-479.85,0.00029681,2]
[314088264,1707969031558,-195.7826786,0.00029826,2]
[314088265,1707969031568,-195.7826786,0.00030456,2]
[314088266,1707969031578,-150.99,0.00030456,2]
[314088267,1707969031587,-159.0,0.00030481,2]
[314088268,1707969031597,-204.0,0.00030839,2]
[314088269,1707969031606,-195.7826786,0.00031085,2]
[314088270,1707969031616,-195.7826786,0.00031715,2]
[314088271,1707969031626,-159.0,0.00032125,2]
[314088272,1707969031638,-195.7826786,0.00032344,2]
[314088273,1707969031649,-12136.69825035,0.0003283,7]
[314088274,1707969031660,-1786.02,0.0003283,5]
[314088275,1707969031671,-1835.7,0.0003283,5]
[314088276,1707969031680,-1830.38,0.0003283,5]
[314088277,1707969031689,-1796.05,0.0003283,5]
[314088278,1707969031699,-8301.20224681,0.00032853,7]
[314088279,1707969031709,-3912.18554123,0.00032863,2]
[314088280,1707969031718,-3814.93022145,0.00032873,7]
[314088281,1707969031728,-3434.58837918,0.00032894,10]
[314088282,1707969031741,-2546.64748333,0.00032894,10]
[314088283,1707969031750,-6000.0,0.000329,2]
[314088284,1707969031760,-13707.80487432,0.00032936,10]
[314088285,1707969031768,-195.7826786,0.00032974,2]
[314088286,1707969031778,-204.0,0.00033269,6]
[314088287,1707969031791,-248.769852,0.000333,3]
[314088288,1707969031804,-617.81697198,0.000333,3]
[314088292,1707969031829,-2019.41317602,0.000333,3]
[314088294,1707969031839,-9999.7485184,0.000334,3]
[314088296,1707969031850,-2048.24753747,0.000334,3]
[314088298,1707969031862,-1650.0,0.000334,3]
[314088301,1707969031878,-534.05788846,0.000334,3]
[314088303,1707969031890,-1548.94605567,0.000334,3]
[314088305,1707969031899,-138.1690334,0.00033604,2]
[314088308,1707969031911,-57.6136452,0.00033604,2]
[314088310,1707969031921,-159.0,0.00033768,2]
[314088312,1707969031930,-1798.46174856,0.00033892,2]
[314088314,1707969031941,-69.13825144,0.00033892,2]
[314088316,1707969031951,-610.56977973,0.00034042,2]
[314088318,1707969031963,-8.28022027,0.00034042,2]
[314088320,1707969031972,-800.0,0.00034128,2]
[314088322,1707969031981,-461.89365073,0.00034134,2]
[314088323,1707969031995,-288.10634927,0.00034134,2]
[314088324,1707969032004,-600.0,0.00034177,2]
[314088325,1707969032014,-195.7826786,0.00034233,2]
[314088326,1707969032025,-207.19,0.00034371,2]
[314088327,1707969032035,-549.660775,0.0003452,2]
[314088328,1707969032048,-150.0,0.00034548,10]
[314088329,1707969032057,-932.16,0.00034615,2]
[314088330,1707969032067,-155.4,0.000347,2]
[314088331,1707969032076,-155.6,0.000347,2]
[314088332,1707969032086,-155.6,0.000347,2]
[314088333,1707969032095,-155.6,0.000347,2]
[314088334,1707969032106,-155.6,0.000347,2]
[314088335,1707969032116,-155.6,0.000347,2]
[314088336,1707969032127,-155.6,0.000347,2]
[314088337,1707969032137,-155.6,0.000347,2]
[314088338,1707969032147,-824.491162,0.00034794,2]
[314088339,1707969032158,-195.7826786,0.00034863,2]
[314088340,1707969032169,-1099.32155,0.00034931,2]
[314088341,1707969032179,-1374.151937,0.00035068,2]
[314088342,1707969032188,-243.89281847,0.00035091,3]
[314088343,1707969032198,-260.04622134,0.00035112,3]
[314088344,1707969032208,-152.89,0.00035329,2]
[314088345,1707969032217,-1388.29384774,0.00035342,2]
[314088346,1707969032230,-339.69981848,0.00035342,2]
[314088347,1707969032242,-195.81904578,0.00035342,2]
[314088348,1707969032252,-85.81836357,0.00035412,2]
[314088349,1707969032265,-73.18163643,0.00035412,2]
[314088350,1707969032276,-192.98029447,0.00035493,2]
[314088355,1707969037479,-250.0,0.00034118,2]
[314088356,1707969037489,-2.80238413,0.00035493,2]
[314088357,1707969037498,-150.97,0.0003554,2]
[314088358,1707969037507,-204.0,0.00035699,11]
[314088359,1707969037678,-150.0,0.0003578,2]
[314088360,1707969037687,-932.16,0.00035895,2]
[314088361,1707969037697,-994.47270445,0.000359,2]
[314088362,1707969037709,-15596.88699555,0.000359,2]
[314088363,1707969037720,-170.16,0.0003596,120]
[314088364,1707969037730,-183.29,0.0003596,2]
[314088365,1707969037739,-2000.0,0.0003596,2]
[314088366,1707969037748,-23890.0,0.0003596,2]
[314088367,1707969037757,-250.0,0.0003596,111]
[314088368,1707969037766,-200.0,0.0003596,2]
[314088369,1707969037775,-563.94,0.0003596,2]
[314088370,1707969037785,-2198.6431,0.00036,2]
[314088371,1707969037794,-150.0,0.00036032,2]
[314088372,1707969037803,-195.7826786,0.00036122,2]
[314088373,1707969037812,-159.35,0.0003623,2]
[314088374,1707969037822,-618.85,0.00036306,2]
[314088375,1707969037831,-495.87,0.00036475,2]
[314088376,1707969037841,-155.4,0.000365,3]
[314088378,1707969037850,-155.4,0.000365,3]
[314088379,1707969037859,-155.6,0.000365,3]
[314088382,1707969037869,-155.6,0.000365,3]
[314088384,1707969037878,-155.6,0.000365,3]
[314088386,1707969037887,-155.6,0.000365,3]
[314088388,1707969037897,-155.6,0.000365,3]
[314088389,1707969037906,-155.6,0.000365,3]
[314088392,1707969037915,-155.6,0.000365,3]
[314088395,1707969037925,-183.14,0.00036508,2]
[314088398,1707969037934,-159.35,0.00036701,2]
[314088400,1707969037943,-195.7826786,0.00036752,2]
[314088403,1707969037953,-150.0,0.000369,29]
[314088406,1707969037962,-159.0,0.00037056,7]
[314088409,1707969037971,-159.35,0.00037173,2]
[314088412,1707969037982,-932.16,0.00037176,2]
[314088415,1707969037991,-170.25,0.00037222,2]
[314088417,1707969038000,-195.7826786,0.00037381,2]
[314088419,1707969038009,-153.87,0.00037552,2]
[314088421,1707969038018,-159.35,0.00037645,2]
[314088423,1707969038027,-556.0,0.00037972,2]
[314088425,1707969038036,-6510.37,0.00038,30]
[314088427,1707969038048,-1125.84857952,0.00038,4]
[314088429,1707969038057,-2223.88956321,0.00038,2]
[314088431,1707969038066,-195.7826786,0.00038011,2]
[314088432,1707969038075,-1942.47912683,0.000381,2]
[314088434,1707969038085,-159.35,0.00038117,2]
[314088437,1707969038095,-495.87,0.00038119,2]
[314088438,1707969038104,-204.0,0.00038129,16]
[314088441,1707969038115,-180.0,0.00038158,2]
[314088442,1707969038125,-155.4,0.000382,3]
[314088444,1707969038135,-155.4,0.000382,3]
[314088446,1707969038144,-155.6,0.000382,3]
[314088448,1707969038153,-155.6,0.000382,3]
[314088450,1707969038162,-155.6,0.000382,3]
[314088452,1707969038171,-155.6,0.000382,3]
[314088454,1707969038180,-155.6,0.000382,3]
[314088456,1707969038189,-155.6,0.000382,3]
[314088458,1707969038198,-155.6,0.000382,3]
[314088460,1707969038208,-427.9068,0.00038256,2]
[314088462,1707969038217,-1740.5256,0.00038256,2]
[314088464,1707969038227,-48265.3242,0.00038256,2]
[314088466,1707969038236,-555.6504,0.00038256,3]
[314088468,1707969038245,-4962.5013,0.00038256,2]
[314088470,1707969038254,-327.92538856,0.00038256,10]
[314088472,1707969038263,-703.12544956,0.00038256,8]
[314088474,1707969038272,-52625.6995499,0.00038346,10]
[314088476,1707969038282,-526.14091063,0.00038356,7]
[314088478,1707969038291,-500.0,0.00038356,7]
[314088480,1707969038300,-512.61196939,0.00038356,7]
[314088482,1707969038309,-500.0,0.00038356,7]
[314088484,1707969038318,-500.0,0.00038356,7]
[314088486,1707969038328,-500.0,0.00038356,7]
[314088488,1707969038338,-509.51275131,0.00038356,7]
[314088490,1707969038347,-500.0,0.00038356,7]
[314088492,1707969038357,-509.45398813,0.00038356,7]
[314088494,1707969038366,-500.0,0.00038356,7]
[314088496,1707969038376,-500.0,0.00038356,7]
[314088498,1707969038385,-500.0,0.00038356,7]
[314088500,1707969038395,-500.0,0.00038356,7]
[314088502,1707969038404,-517.87588451,0.00038356,7]
[314088504,1707969038413,-513.00803396,0.00038356,7]
[314088506,1707969038422,-500.0,0.00038356,7]
[314088508,1707969038431,-500.0,0.00038356,7]
[314088510,1707969038441,-500.0,0.00038356,7]
[314088512,1707969038449,-537.74779455,0.00038356,7]
[314088514,1707969038458,-500.0,0.00038356,7]
[314088516,1707969038467,-500.0,0.00038356,7]
[314088518,1707969038477,-500.0,0.00038356,7]
[314088520,1707969038486,-500.0,0.00038356,7]
[314088523,1707969038497,-500.0,0.00038356,7]
[314088524,1707969038506,-506.41381935,0.00038356,7]
[314088526,1707969038516,-511.04596892,0.00038356,7]
[314088528,1707969038525,-512.46184631,0.00038356,7]
[314088530,1707969038534,-502.30561059,0.00038356,7]
[314088532,1707969038543,-500.0,0.00038356,7]
[314088534,1707969038552,-505.76285517,0.00038356,7]
[314088536,1707969038561,-500.0,0.00038356,7]
[314088538,1707969038570,-362.25418844,0.00038356,7]
[314088540,1707969038579,-500.0,0.00038356,7]
[314088542,1707969038588,-500.0,0.00038356,7]
[314088544,1707969038597,-500.0,0.00038356,7]
[314088546,1707969038606,-500.0,0.00038356,7]
[314088548,1707969038615,-500.0,0.00038356,7]
[314088550,1707969038624,-190.97228677,0.00038356,7]
[314088552,1707969038633,-500.0,0.00038356,7]
[314088554,1707969038643,-507.15501102,0.00038356,7]
[314088557,1707969038652,-526.34763756,0.00038356,7]
[314088559,1707969038661,-500.0,0.00038356,7]
[314088561,1707969038670,-500.0,0.00038356,7]
[314088563,1707969038679,-506.43088369,0.00038356,7]
[314088565,1707969038689,-500.0,0.00038356,7]
[314088567,1707969038698,-504.61785763,0.00038356,7]
[314088569,1707969038707,-500.0,0.00038356,7]
[314088571,1707969038715,-545.29742384,0.00038356,7]
[314088573,1707969038726,-540.11323002,0.00038356,7]
[314088574,1707969038735,-500.0,0.00038356,7]
[314088577,1707969038745,-604.06608544,0.00038356,7]
[314088579,1707969038754,-518.70329876,0.00038356,7]
[314088580,1707969038763,-173.76863187,0.00038356,7]
[314088582,1707969038772,-500.0,0.00038356,7]
[314088584,1707969038781,-500.0,0.00038356,7]
[314088587,1707969038790,-500.0,0.00038356,7]
[314088588,1707969038800,-505.95348809,0.00038356,7]
[314088590,1707969038809,-500.0,0.00038356,7]
[314088593,1707969038818,-500.0,0.00038356,7]
[314088594,1707969038827,-500.0,0.00038356,7]
[314088596,1707969038836,-508.97591735,0.00038356,7]
[314088598,1707969038845,-500.0,0.00038356,7]
[314088600,1707969038855,-500.0,0.00038356,7]
[314088602,1707969038864,-500.0,0.00038356,7]
[314088604,1707969038873,-500.0,0.00038356,7]
[314088606,1707969038882,-533.73083596,0.00038356,7]
[314088608,1707969038891,-500.0,0.00038356,7]
[314088610,1707969038900,-500.0,0.00038356,7]
[314088612,1707969038910,-523.7471795,0.00038356,7]
[314088614,1707969038919,-310.2855579,0.00038356,7]
[314088616,1707969038928,-500.0,0.00038356,7]
[314088618,1707969038937,-500.0,0.00038356,7]
[314088620,1707969038946,-500.0,0.00038356,7]
[314088622,1707969038956,-509.15295654,0.00038356,7]
[314088624,1707969038965,-500.0,0.00038356,7]
[314088627,1707969038976,-500.0,0.00038356,7]
[314088629,1707969038985,-500.0,0.00038356,7]
[314088631,1707969038994,-500.0,0.00038356,7]
[314088633,1707969039003,-500.0,0.00038356,7]
[314088635,1707969039013,-500.0,0.00038356,7]
[314088637,1707969039022,-500.0,0.00038356,7]
[314088639,1707969039033,-500.0,0.00038356,7]
[314088640,1707969039043,-500.0,0.00038356,7]
[314088643,1707969039053,-518.77788627,0.00038356,7]
[314088645,1707969039062,-500.0,0.00038356,7]
[314088647,1707969039073,-499.93602792,0.00038356,7]
[314088649,1707969039082,-250.0,0.00038356,7]
[314088651,1707969039091,-500.0,0.00038356,7]
[314088653,1707969039100,-500.0,0.00038356,7]
[314088654,1707969039110,-507.8564224,0.00038356,7]
[314088655,1707969039121,-500.0,0.00038356,7]
[314088656,1707969039132,-500.0,0.00038356,7]
[314088657,1707969039141,-500.0,0.00038356,7]
[314088658,1707969039150,-500.0,0.00038356,7]
[314088659,1707969039159,-526.64166206,0.00038356,7]
[314088660,1707969039169,-500.0,0.00038356,7]
[314088661,1707969039178,-500.0,0.00038356,7]
[314088662,1707969039187,-500.0,0.00038356,7]
[314088664,1707969039196,-540.74928242,0.00038356,7]
[314088666,1707969039205,-500.0,0.00038356,7]
[314088668,1707969039214,-500.0,0.00038356,7]
[314088670,1707969039224,-500.0,0.00038356,7]
[314088672,1707969039235,-500.0,0.00038356,7]
[314088674,1707969039244,-500.0,0.00038356,7]
[314088676,1707969039253,-500.0,0.00038356,7]
[314088678,1707969039262,-500.0,0.00038356,7]
[314088681,1707969039271,-518.46785809,0.00038356,7]
[314088683,1707969039281,-500.0,0.00038356,7]
[314088686,1707969039290,-500.0,0.00038356,7]
[314088688,1707969039299,-500.0,0.00038356,7]
[314088690,1707969039308,-500.0,0.00038356,7]
[314088692,1707969039317,-500.0,0.00038356,7]
[314088695,1707969039327,-500.0,0.00038356,7]
[314088697,1707969039336,-500.0,0.00038356,7]
[314088699,1707969039345,-500.0,0.00038356,7]
[314088701,1707969039355,-512.40613475,0.00038356,7]
[314088703,1707969039364,-520.53530572,0.00038356,7]
[314088704,1707969039373,-200.0,0.00038356,7]
[314088706,1707969039382,-511.12042203,0.00038356,7]
[314088708,1707969039391,-500.0,0.00038356,7]
[314088710,1707969039400,-515.03457759,0.00038356,30]
[314088712,1707969039409,-500.0,0.00038356,7]
[314088714,1707969039418,-513.36552378,0.00038356,7]
[314088716,1707969039427,-510.11032924,0.00038356,7]
[314088718,1707969039437,-524.77842778,0.00038356,7]
[314088720,1707969039446,-547.62672887,0.00038356,7]
[314088722,1707969039455,-505.85162485,0.00038356,7]
[314088724,1707969039464,-500.0,0.00038356,7]
[314088726,1707969039475,-500.0,0.00038356,7]
[314088728,1707969039485,-500.0,0.00038356,7]
[314088730,1707969039494,-504.9704191,0.00038356,7]
[314088732,1707969039503,-629.82837974,0.00038356,7]
[314088734,1707969039513,-500.0,0.00038356,7]
[314088736,1707969039522,-500.0,0.00038356,7]
[314088738,1707969039531,-518.52933677,0.00038356,7]
[314088740,1707969039541,-500.0,0.00038356,7]
[314088742,1707969039550,-500.0,0.00038356,7]
[314088744,1707969039560,-514.48424578,0.00038356,7]
[314088746,1707969039568,-508.84930218,0.00038356,7]
[314088748,1707969039578,-512.28151247,0.00038356,7]
[314088750,1707969039587,-514.7178003,0.00038356,7]
[314088752,1707969039597,-515.56973598,0.00038356,7]
[314088754,1707969039606,-597.1615615,0.00038356,7]
[314088756,1707969039615,-517.8479965,0.00038356,7]
[314088758,1707969039624,-500.0,0.00038356,7]
[314088760,1707969039633,-509.2370958,0.00038356,7]
[314088762,1707969039643,-500.0,0.00038356,7]
[314088764,1707969039653,-500.0,0.00038356,7]
[314088766,1707969039662,-500.0,0.00038356,7]
[314088768,1707969039671,-500.0,0.00038356,7]
[314088770,1707969039682,-500.0,0.00038356,7]
[314088772,1707969039690,-508.16881423,0.00038356,7]
[314088774,1707969039699,-500.0,0.00038356,7]
[314088776,1707969039708,-500.0,0.00038356,7]
[314088778,1707969039718,-500.0,0.00038356,7]
[314088780,1707969039728,-500.0,0.00038356,7]
[314088782,1707969039737,-500.0,0.00038356,7]
[314088784,1707969039746,-500.0,0.00038356,7]
[314088786,1707969039755,-514.91697497,0.00038356,7]
[314088788,1707969039764,-500.0,0.00038356,7]
[314088790,1707969039773,-500.0,0.00038356,7]
[314088792,1707969039782,-500.0,0.00038356,7]
[314088794,1707969039792,-500.0,0.00038356,7]
[314088796,1707969039801,-500.0,0.00038356,7]
[314088798,1707969039810,-507.90824982,0.00038356,7]
[314088800,1707969039819,-530.56510686,0.00038356,30]
[314088802,1707969039828,-500.0,0.00038356,7]
[314088803,1707969039837,-506.18879091,0.00038356,7]
[314088806,1707969039846,-500.0,0.00038356,7]
[314088808,1707969039856,-500.0,0.00038356,7]
[314088809,1707969039865,-529.7391632,0.00038356,7]
[314088811,1707969039876,-511.25256229,0.00038356,7]
[314088813,1707969039886,-500.0,0.00038356,2]
[314088815,1707969039894,-282.0102852,0.00038356,2]
[314088817,1707969039903,-519.40323768,0.00038356,7]
[314088819,1707969039912,-513.04415156,0.00038356,7]
[314088821,1707969039921,-500.0,0.00038356,7]
[314088823,1707969039930,-618.64,0.00038356,7]
[314088825,1707969039939,-500.0,0.00038356,7]
[314088827,1707969039948,-507.70250814,0.00038356,7]
[314088829,1707969039957,-500.0,0.00038356,7]
[314088831,1707969039966,-500.0,0.00038356,7]
[314088833,1707969039977,-513.43505532,0.00038356,7]
[314088835,1707969039986,-500.0,0.00038356,7]
[314088838,1707969039995,-607.03094305,0.00038356,7]
[314088840,1707969040005,-500.0,0.00038356,7]
[314088842,1707969040014,-500.0,0.00038356,7]
[314088844,1707969040024,-500.0,0.00038356,7]
[314088846,1707969040037,-1000.0,0.00038356,7]
[314088848,1707969040046,-500.0,0.00038356,7]
[314088852,1707969040056,-500.0,0.00038356,7]
[314088854,1707969040065,-500.0,0.00038356,7]
[314088857,1707969040075,-625.7694904,0.00038356,7]
[314088859,1707969040085,-500.0,0.00038356,7]
[314088860,1707969040094,-513.65813221,0.00038356,7]
[314088862,1707969040104,-513.93765336,0.00038356,7]
[314088865,1707969040113,-504.7466779,0.00038356,7]
[314088867,1707969040123,-421.06987827,0.00038356,7]
[314088868,1707969040132,-508.67736857,0.00038356,7]
[314088870,1707969040141,-500.0,0.00038356,7]